[Event "Chinese League Div-A Rapid 2022"]
[Site "Fuling,Chongqing"]
[Date "2022.09.07"]
[Round "2.26"]
[White "Chen, Qi b"]
[Black "Chen, Yuan"]
[Result "1-0"]
[ECO "E09"]
[WhiteElo "2485"]
[BlackElo "2138"]
[Annotator "TA"]
[PlyCount "76"]
[EventDate "2022.09.07"]
[EventType "team-tourn"]
[EventCountry "CHN"]
[SourceTitle "playchess.com"]
[Source "ChessBase"]
[SourceQuality "1"]
[TimeControl "1500+10"]

{[%evp 17,76,19,12,0,0,0,0,2,0,0,0,0,0,6,36,42,91,65,75,70,75,94,73,77,79,102,87,95,138,141,246,252,237,122,322,259,271,260,260,259,263,240,239,237,341,265,305,293,337,337,337,337,337,311,358,311,359,249,451,380,579]} 1. d4 {[%emt 0:00:02]} Nf6 {[%emt 0:00:02]} 2. c4 {[%emt 0:00:02]} e6 {[%emt 0:00:02]} 3. g3 {[%emt 0:00:01]} d5 {[%emt 0:00:20]} 4. Bg2 {[%emt 0:00:04]} Be7 {[%emt 0:00:23]} 5. Nf3 {[%emt 0:00:01]} O-O {[%emt 0:00:18]} 6. O-O {[%emt 0:00:03]} c6 {[%emt 0:02:33][%cal Bc7c6,Bc6c5][%mdl 32]} 7. Qc2 {[%emt 0:00:02]} Nbd7 {[%emt 0:03:48]} 8. Nbd2 {[%emt 0:00:02]} c5 {[%emt 0:00:02]} 9. cxd5 {[%emt 0:04:07]} exd5 {[%emt 0:00:46]} 10. b3 {[%emt 0:00:14] E09: Closed Catalan: Main Line: 7 Qc2 c6 8 Nbd2.} b6 {[%emt 0:01:01]} 11. Bb2 {[%emt 0:00:08]} Ba6 {[%emt 0:00:18]} 12. Rfe1 {[%emt 0:01:39] The position is equal.} Rc8 {[%emt 0:00:03] [#]} 13. Rad1 $146 {[%emt 0:03:21]} (13. Bh3 {is more complex.} cxd4 14. Qd1 d3 15. exd3 Bxd3 16. Ne5) ({Predecessor:} 13. Qd1 Re8 14. Rc1 Bd6 15. Nh4 Bf8 16. Ndf3 Ne4 17. Ne5 Ndf6 {1-0 (75) Pham,C (2353)-Shyam,N (2431) Ho Chi Minh City 2014}) 13... Re8 {[%emt 0:01:52]} 14. Bf1 {[%emt 0:03:53]} Qc7 {[%emt 0:02:50]} 15. dxc5 {[%emt 0:00:54]} bxc5 {[%emt 0:01:22]} 16. Bh3 {[%emt 0:01:56] Hoping for e4.} c4 {[%emt 0:06:11]} (16... Rcd8 $14) 17. bxc4 $16 {[%emt 0:00:34]} dxc4 {[%emt 0:00:22] [#] aiming for ...c3.} 18. Bxf6 {[%emt 0:02:14]} Nxf6 {[%emt 0:02:05]} 19. Bxc8 {[%emt 0:01:00]} Rxc8 {[%emt 0:00:01]} 20. Qa4 {[%emt 0:02:31]} Bb7 {[%emt 0:00:27]} 21. Rc1 {[%emt 0:00:03][%cal Rc1c4]} c3 {[%emt 0:00:36]} 22. Nb3 {[%emt 0:00:25]} Bd5 {[%emt 0:01:09]} 23. Red1 {[%emt 0:00:18][%cal Be1d1,Bd1d3,Bd3d7][%mdl 32]} h6 {[%emt 0:00:20] [#]} (23... Qb7 $16) 24. Rd3 $1 $18 {[%emt 0:01:37]} c2 {[%emt 0:01:42]} 25. Nbd4 {[%emt 0:00:01]} ({White should try} 25. Nfd4 $18) 25... Ne4 $2 {[%emt 0:00:18] This costs Black the game.} (25... Be4 $16) 26. Qxc2 {[%emt 0:01:42]} ({Resist} 26. Rxc2 Bc5 27. Rd1 Rd8 $18) 26... Qxc2 {[%emt 0:00:03]} 27. Rxc2 {[%emt 0:00:05]} ({Don't take} 27. Nxc2 $6 Bxa2 28. Nfd4 Nf6 $18) 27... Rxc2 {[%emt 0:00:08]} 28. Nxc2 {[%emt 0:00:02] Pair of Knights!} Bxa2 {[%emt 0:00:08]} 29. Rd7 {[%emt 0:00:32]} Bc5 {[%emt 0:00:01]} 30. Nfd4 {[%emt 0:00:02]} a5 {[%emt 0:00:29]} (30... Bb6 {was necessary.} 31. Re7 Nc5 32. Re8+ Kh7) 31. f3 {[%emt 0:00:09]} Nc3 {[%emt 0:00:16]} 32. Kf1 {[%emt 0:00:19]} Nd5 {[%emt 0:00:13]} 33. e4 {[%emt 0:00:28]} Nb4 {[%emt 0:00:12]} 34. Rc7 {[%emt 0:00:32]} Bb6 {[%emt 0:00:12]} 35. Rb7 {[%emt 0:00:27]} Bc5 {[%emt 0:00:10]} 36. Ke1 {[%emt 0:00:36]} Kh7 {[%emt 0:00:13]} 37. Kd2 {[%emt 0:00:03]} Na6 $2 {[%emt 0:00:04]} (37... Nxc2 {is a better defense.} 38. Nxc2 Bg1) 38. Kd3 Bb4 {[%emt 0:00:10] Weighted Error Value: White=0.16 (very precise) /Black=0.43} (38... Bd6 {was worth a try.}) 1-0

[Event "Chinese League Div-A Rapid 2022"]
[Site "Fuling,Chongqing"]
[Date "2022.09.07"]
[Round "2.27"]
[White "Wei, Yi"]
[Black "Ding, Liren"]
[Result "1/2-1/2"]
[ECO "C48"]
[WhiteElo "2727"]
[BlackElo "2808"]
[Annotator "TA"]
[PlyCount "45"]
[EventDate "2022.09.07"]
[EventType "team-tourn"]
[EventCountry "CHN"]
[SourceTitle "playchess.com"]
[Source "ChessBase"]
[SourceQuality "1"]
[TimeControl "1500+10"]

{[%evp 10,45,31,32,30,0,2,27,21,0,0,0,0,0,0,0,0,0,0,0,0,6,6,0,0,0,0,0,0,0,0,0,0,0,0,0,0,0]} 1. e4 {[%emt 0:00:03]} e5 {[%emt 0:00:01]} 2. Nf3 {[%emt 0:00:05]} Nc6 {[%emt 0:00:13]} 3. Nc3 {[%emt 0:00:04]} Nf6 {[%emt 0:00:03]} 4. Bb5 {[%emt 0:00:03]} Nd4 {[%emt 0:00:34]} 5. Bc4 {[%emt 0:00:16]} Bc5 {[%emt 0:00:05]} 6. Nxe5 {[%emt 0:00:05]} Qe7 {[%emt 0:00:01] C48: Four Knights: 4 Bb5, replies other than 4...Bb4.} 7. Nf3 {[%emt 0:00:07]} (7. Bxf7+ Kf8 8. Nd3 (8. f4 $2 d6 $19) 8... Kxf7 $17) (7. Nxf7 Rf8 8. O-O b5 9. Nxb5 (9. Nd5 Nxd5 10. Bxd5 c6 $11) 9... Nxb5 $11) 7... d5 $1 {[%emt 0:00:08]} (7... Nxe4 8. Nd5 Nxf3+ 9. gxf3 $16 (9. Qxf3 Ng5+ 10. Qe3 Qxe3+ 11. Nxe3 O-O $11)) 8. Bxd5 {[%emt 0:00:01] Black must now prevent Nxd4.} Bg4 {[%emt 0:01:20] White has an edge.} 9. d3 {[%emt 0:00:07] The position is equal.} (9. Bxb7 Rb8 10. Ba6 Nxe4 $19) 9... O-O-O {[%emt 0:00:06]} 10. Be3 {[%emt 0:00:21]} Nxd5 {[%emt 0:00:03]} 11. Nxd5 {[%emt 0:00:02]} (11. exd5 Bxf3 12. gxf3 Nf5 $15) 11... Rxd5 {[%emt 0:00:01]} 12. exd5 {[%emt 0:00:03] [#] aiming for Kd2.} Re8 $1 {[%emt 0:00:01]} 13. O-O {[%emt 0:00:51]} Bxf3 {[%emt 0:00:29]} 14. gxf3 {[%emt 0:00:06] Threatens to win with Re1.} Bd6 {[%emt 0:00:18] ...Qh4 is the strong threat.} 15. f4 {[%emt 0:00:04]} (15. Bxd4 {is a self mate.} Qg5+ 16. Kh1 Qf4) 15... Qh4 $1 {[%emt 0:00:03]} 16. Bxd4 {[%emt 0:00:18]} Bxf4 {[%emt 0:00:15][%csl Gf4][%cal Rh4h2] [#]} 17. Kg2 {[%emt 0:00:02]} (17. h3 Qxh3) 17... Qxh2+ {[%emt 0:00:46]} 18. Kf3 {[%emt 0:00:02] And now Rh1 would win.} Qh3+ {[%emt 0:00:01]} 19. Kxf4 {[%emt 0:00:01]} Qh2+ $1 {[%emt 0:00:02]} 20. Kf3 {[%emt 0:00:12]} (20. Kg5 {gets mated.} f6+ 21. Kg4 f5+ 22. Kg5 Qh6+ 23. Kxf5 Rf8+) 20... Qh3+ {[%emt 0:00:01]} 21. Kf4 {[%emt 0:00:27]} Qh2+ {[%emt 0:00:03] [#]} 22. Kf3 $146 {[%emt 0:00:05]} (22. Kg5 {leads to mate.} f6+ 23. Kg4 f5+ 24. Kg5 Qh6+ 25. Kxf5 Rf8+) ({Predecessor:} 22. Kf5 g6+ 23. Kg4 Qg2+ 24. Kh4 Qh2+ 25. Kg4 Qg2+ 26. Kh4 Qh2+ 27. Kg4 Qg2+ 28. Kh4 Qh2+ 29. Kg4 Qg2+ 30. Kh4 Qh2+ {½-½ (30) Wei,Y (2729)-Ding,L (2799) Hangzhou 2022}) 22... Qh3+ {[%emt 0:00:04]} 23. Kf4 {[%emt 0:00:18] A balanced but interesting game.  Weighted Error Value: White=0.01 (flawless) /Black=0.00 (flawless)} 1/2-1/2

[Event "Chinese League Div-A Rapid 2022"]
[Site "Fuling,Chongqing"]
[Date "2022.09.07"]
[Round "2.28"]
[White "Xu, Jun"]
[Black "Lu, Shanglei"]
[Result "1/2-1/2"]
[ECO "D27"]
[WhiteElo "2474"]
[BlackElo "2616"]
[Annotator "TA"]
[PlyCount "46"]
[EventDate "2022.09.07"]
[EventType "team-tourn"]
[EventCountry "CHN"]
[SourceTitle "playchess.com"]
[Source "ChessBase"]
[SourceQuality "1"]
[TimeControl "1500+10"]

{[%evp 29,46,8,14,7,10,1,23,23,23,19,19,24,36,45,50,31,45,30,37]} 1. d4 {[%emt 0:00:03]} Nf6 {[%emt 0:00:03]} 2. Nf3 {[%emt 0:00:21]} e6 {[%emt 0:00:04]} 3. c4 {[%emt 0:00:19]} d5 {[%emt 0:00:03]} 4. Nc3 {[%emt 0:00:03]} dxc4 {[%emt 0:01:26]} 5. e3 {[%emt 0:01:26]} a6 {[%emt 0:00:10]} 6. a4 {[%emt 0:00:20]} c5 {[%emt 0:00:02]} 7. Bxc4 {[%emt 0:00:03]} Nc6 {[%emt 0:00:02]} 8. O-O {[%emt 0:00:02]} Be7 {[%emt 0:00:02]} 9. Qe2 {[%emt 0:00:37]} cxd4 {[%emt 0:00:10]} 10. Rd1 {[%emt 0:00:07]} e5 {[%emt 0:00:02]} 11. exd4 {[%emt 0:01:22]} exd4 {[%emt 0:00:08]} 12. Nxd4 {[%emt 0:02:20]} Nxd4 {[%emt 0:01:15]} 13. Qe5 {[%emt 0:00:13]} Qd6 {[%emt 0:00:03]} 14. Qxd4 {[%emt 0:01:15]} Qxd4 {[%emt 0:00:03]} 15. Rxd4 {[%emt 0:00:02]} Bc5 {[%emt 0:00:03]} 16. Rd1 {[%emt 0:00:23] D27: Queen's Gambit Accepted: Classical main line: 7 e4!? and 7 a4.} O-O {[%emt 0:00:04]} 17. Bg5 {[%emt 0:00:26]} Be6 {[%emt 0:00:03]} 18. Bxe6 {[%emt 0:01:02]} fxe6 {[%emt 0:00:42]} 19. Bxf6 {[%emt 0:00:01]} gxf6 {[%emt 0:00:03]} 20. Ne4 {[%emt 0:00:08]} Bb4 {[%emt 0:00:03]} 21. Rac1 {[%emt 0:00:44] Black must now prevent Rc7.} Rf7 {[%emt 0:00:29] Against Rc7} 22. Kf1 {[%emt 0:00:22] [#]} Raf8 $146 {[%emt 0:02:37]} ({Predecessor:} 22... h6 23. Rc4 a5 24. Rd7 Raf8 25. Rcc7 Rxd7 26. Rxd7 Rf7 27. Rd8+ Kh7 28. g4 f5 29. gxf5 Rxf5 {½-½ (50) Xu,X (2577)-Narayanan,S (2565) Bhubaneswar 2018}) 23. Nc5 {[%emt 0:00:52]} Re8 {[%emt 0:02:07] Weighted Error Value: White=0.05 (flawless) /Black=0.10 (very precise)} 1/2-1/2

[Event "Chinese League Div-A Rapid 2022"]
[Site "Fuling,Chongqing"]
[Date "2022.09.07"]
[Round "2.29"]
[White "Zhu, Jiner"]
[Black "Yuan, Ye"]
[Result "1-0"]
[ECO "C42"]
[WhiteElo "2464"]
[BlackElo "2108"]
[Annotator "TA"]
[PlyCount "95"]
[EventDate "2022.09.07"]
[EventType "team-tourn"]
[EventCountry "CHN"]
[SourceTitle "playchess.com"]
[Source "ChessBase"]
[SourceQuality "1"]
[TimeControl "1500+10"]

{[%evp 12,95,23,17,29,26,54,47,52,43,51,52,60,45,50,39,55,33,62,61,54,56,62,59,64,60,43,51,120,116,162,156,229,204,233,230,245,237,379,372,570,491,433,494,494,494,494,493,493,475,712,718,712,685,642,581,488,481,473,370,825,456,603,537,1074,951,718,251,5010,5002,978,492,12836,12836,12837,12837,12837,12838,12838,12839,12839,12839,12842,12841,12840,12839]} 1. e4 {[%emt 0:00:04]} e5 {[%emt 0:00:01]} 2. Nf3 {[%emt 0:00:09]} Nf6 {[%emt 0:00:02]} 3. Nxe5 {[%emt 0:01:05]} d6 {[%emt 0:00:04]} 4. Nf3 {[%emt 0:00:03]} Nxe4 {[%emt 0:00:02]} 5. Nc3 {[%emt 0:00:02]} Nxc3 {[%emt 0:00:56]} 6. dxc3 {[%emt 0:00:03]} Be7 {[%emt 0:00:32]} 7. Be3 {[%emt 0:00:08]} Bf6 {[%emt 0:01:35] C42: Petroff Defence: 3 Nxe5 and unusual White 3rd moves.} 8. Qd2 {[%emt 0:00:11]} Bg4 {[%emt 0:00:48]} 9. O-O-O {[%emt 0:02:02]} Nc6 {[%emt 0:01:40] White is slightly better.} 10. h3 {[%emt 0:00:07] [#]} Be6 $146 {[%emt 0:02:40]} ({Predecessor:} 10... Bxf3 11. gxf3 Qd7 12. h4 Qf5 13. f4 Qa5 14. Bc4 Rf8 15. Qe2 O-O-O 16. Rd5 Qa4 17. Kb1 a6 18. b3 Qa3 19. Bc1 Rde8 20. Qg4+ {1-0 (20) Gardner,R (2257)-Pua,R (1796) Edmonton 2004}) 11. g4 {[%emt 0:00:23]} h6 {[%emt 0:01:06]} 12. Bg2 {[%emt 0:00:18]} Qd7 {[%emt 0:02:05]} ({Less strong is} 12... Bxa2 13. b3 $16 (13. Nd4 Nxd4 14. Bxd4 Be6 $16)) 13. b3 {[%emt 0:02:12]} O-O-O {[%emt 0:01:15]} 14. Nd4 {[%emt 0:00:05]} Nxd4 {[%emt 0:00:17]} 15. Bxd4 {[%emt 0:00:04]} Kb8 {[%emt 0:01:24]} 16. Bxf6 {[%emt 0:00:11]} gxf6 {[%emt 0:00:01]} 17. f4 {[%emt 0:00:07]} f5 {[%emt 0:01:14]} 18. g5 {[%emt 0:00:15]} hxg5 {[%emt 0:00:06]} 19. fxg5 {[%emt 0:00:06]} Rh4 {[%emt 0:00:12] [#] White stays focused until the end.} (19... f6 $14) 20. Qf2 $1 $16 {[%emt 0:00:27]} Rdh8 {[%emt 0:00:10]} (20... Rhh8 $16 {was called for.}) 21. Rd4 $18 {[%emt 0:00:08]} Rxd4 {[%emt 0:01:47]} (21... R4h7 $16 {keeps fighting.}) 22. Qxd4 {[%emt 0:01:13]} Qd8 {[%emt 0:01:33]} 23. h4 {[%emt 0:00:03]} Rg8 {[%emt 0:01:10]} 24. Bf3 $40 {[%emt 0:00:09][%mdl 128] White has strong attack.} f6 {[%emt 0:03:43]} (24... b6 $142 25. Kb2 Rg6) 25. Re1 {[%emt 0:00:25]} Bc8 {[%emt 0:00:30]} (25... Bf7 {was necessary.} 26. Qxf6 Qxf6 27. gxf6 Rf8) 26. Bd5 {[%emt 0:00:56]} fxg5 {[%emt 0:00:15]} 27. Bxg8 {[%emt 0:00:15]} Qxg8 {[%emt 0:00:01][%mdl 4096] Endgame KQR-KQB} 28. h5 {[%emt 0:02:23]} Qh7 {[%emt 0:00:44]} 29. Qf6 {[%emt 0:00:40] [#] Hoping for h6.} Qxh5 {[%emt 0:00:26]} 30. Qd8 {[%emt 0:00:00]} b6 {[%emt 0:00:46]} (30... b5 $142 31. Re8 Qh1+ 32. Kb2 Qb7 33. Qxg5 Qf3) 31. Re8 {[%emt 0:00:27][%csl Ge8][%cal Rd8c8]} Qh1+ {[%emt 0:00:02]} 32. Kb2 {[%emt 0:00:02][%csl Ge8][%cal Rd8c8]} Qb7 {[%emt 0:00:02]} 33. Qxg5 {[%emt 0:00:13]} Qc6 {[%emt 0:00:32]} 34. Qd8 {[%emt 0:00:12][%csl Ge8][%cal Rd8c8]} Qb7 {[%emt 0:00:01]} 35. b4 {[%emt 0:01:04]} b5 $2 {[%emt 0:00:53]} (35... f4 36. Rf8 f3) 36. Rf8 {[%emt 0:00:17] Threatens to win with Rxf5.} a6 {[%emt 0:01:05]} 37. Rxf5 {[%emt 0:02:04]} Ka7 {[%emt 0:00:08]} 38. Rf7 {[%emt 0:00:09]} Kb6 {[%emt 0:00:07]} 39. Qe8 $2 {[%emt 0:00:52]} (39. Rf8) 39... a5 $2 {[%emt 0:00:21]} (39... Qd5 40. Qe7 Qc4) 40. Rf8 {[%emt 0:01:11] White is clearly winning.} Bg4 {[%emt 0:00:14]} 41. Rf4 {[%emt 0:01:47]} Bc8 {[%emt 0:00:10]} (41... Qc8 $142) 42. a4 {[%emt 0:00:45]} bxa4 {[%emt 0:00:55]} 43. bxa5+ {[%emt 0:00:08]} Ka7+ {[%emt 0:00:28]} 44. Rb4 {[%emt 0:00:04]} Qa6 {[%emt 0:00:07]} 45. Qd8 {[%emt 0:00:09]} a3+ {[%emt 0:00:07]} 46. Kxa3 {[%emt 0:00:08]} c5 {[%emt 0:00:09]} 47. Qb6+ {[%emt 0:00:31]} Qxb6 {[%emt 0:00:04]} 48. Rxb6 {[%emt 0:00:02] Weighted Error Value: White=0.46/Black=0.40} 1-0

[Event "Chinese League Div-A Rapid 2022"]
[Site "Fuling,Chongqing"]
[Date "2022.09.07"]
[Round "2.30"]
[White "Bai, Xue"]
[Black "Guo, Qi"]
[Result "1/2-1/2"]
[ECO "B11"]
[WhiteElo "2123"]
[BlackElo "2406"]
[Annotator "TA"]
[PlyCount "105"]
[EventDate "2022.09.07"]
[EventType "team-tourn"]
[EventCountry "CHN"]
[SourceTitle "playchess.com"]
[Source "ChessBase"]
[SourceQuality "1"]
[TimeControl "1500+10"]

{[%evp 15,105,-10,-7,-2,-12,-30,-33,-70,-52,-54,-51,-48,-23,-43,-48,-56,-66,-62,-45,-52,-40,-49,-29,-29,-16,-12,-2,-30,-28,-28,0,0,0,0,5,0,0,0,18,0,0,0,0,0,0,0,0,0,0,0,0,0,0,0,0,0,0,0,0,-15,-15,-15,-15,-15,-15,-15,-15,-16,-8,-24,0,0,0,0,0,0,0,-67,0,0,0,0,0,0,0,0,0,0,0,0,0,0]} 1. e4 {[%emt 0:00:04]} c6 {[%emt 0:00:02]} 2. Nc3 {[%emt 0:00:22]} d5 {[%emt 0:00:02]} 3. Nf3 {[%emt 0:00:02]} Bg4 {[%emt 0:00:03]} 4. h3 {[%emt 0:00:04]} Bxf3 {[%emt 0:00:03]} 5. Qxf3 {[%emt 0:00:03]} e6 {[%emt 0:00:03]} 6. d3 {[%emt 0:00:42]} Nf6 {[%emt 0:00:31]} 7. g3 {[%emt 0:02:28]} Bb4 {[%emt 0:01:07]} 8. Bd2 {[%emt 0:00:17]} d4 {[%emt 0:02:22]} 9. Nb1 {[%emt 0:01:31] B11: Caro-Kann: Two Knights Variation.} Qb6 {[%emt 0:00:02]} 10. c3 {[%emt 0:05:41]} Ba5 {[%emt 0:05:24] [#]} 11. b3 $146 {[%emt 0:01:03] Black is slightly better.} ({Predecessor:} 11. Bc1 c5 12. Bg2 Nc6 13. O-O O-O 14. Qe2 e5 15. Kh1 dxc3 16. bxc3 Qa6 17. Bb2 {1-0 (44) Saenz Narciso,M (2226)-Veganzonez Rojo,D (2072) Gijon 2011}) 11... dxc3 {[%emt 0:00:07]} 12. Nxc3 {[%emt 0:00:49]} Nbd7 {[%emt 0:00:10][%cal Bb8d7,Bd7e5,Be5f3,Bf3d2][%mdl 32] And now ...Ne5 would win.} 13. Qe3 {[%emt 0:00:49]} Ne5 {[%emt 0:02:09]} 14. Qxb6 {[%emt 0:02:53]} axb6 {[%emt 0:00:07]} 15. Kd1 {[%emt 0:01:16]} Nf3 {[%emt 0:01:53]} 16. Bg2 {[%emt 0:02:26]} Nxd2 {[%emt 0:00:28]} (16... O-O-O {looks sharper.} 17. Kc2 Nxd2 18. Kxd2 Rd4) 17. Kxd2 {[%emt 0:00:03]} Ke7 {[%emt 0:00:20]} 18. Kc2 {[%emt 0:00:13]} Bxc3 {[%emt 0:00:02]} 19. Kxc3 {[%emt 0:00:01]} Rhd8 {[%emt 0:02:07]} 20. Rhd1 {[%emt 0:03:37]} b5 {[%emt 0:04:17]} 21. a4 {[%emt 0:00:53]} bxa4 {[%emt 0:00:40]} 22. Rxa4 {[%emt 0:00:02]} Rxa4 {[%emt 0:00:06]} 23. bxa4 $11 {[%emt 0:00:02][%mdl 4096] Endgame KRB-KRN} Ra8 {[%emt 0:00:04]} 24. Rb1 {[%emt 0:00:36]} Ra7 {[%emt 0:00:01]} 25. Bf3 {[%emt 0:00:24]} Ne8 {[%emt 0:00:07]} 26. Bd1 {[%emt 0:00:33]} Nd6 {[%emt 0:00:44]} 27. Bc2 {[%emt 0:00:16]} e5 {[%emt 0:01:48]} 28. f4 {[%emt 0:00:36]} f6 {[%emt 0:00:01]} 29. d4 {[%emt 0:00:26]} exd4+ {[%emt 0:00:37]} 30. Kxd4 {[%emt 0:00:03]} g6 {[%emt 0:00:06]} 31. h4 {[%emt 0:00:29]} Ra5 {[%emt 0:00:09]} 32. Bb3 {[%emt 0:00:54]} c5+ {[%emt 0:00:36]} 33. Kd3 {[%emt 0:00:29]} b5 {[%emt 0:00:30]} 34. axb5 {[%emt 0:00:05] [#] aiming for b6.} Rxb5 {[%emt 0:00:02]} 35. Bc2 {[%emt 0:00:17] Threatens to win with e5.} Ra5 {[%emt 0:00:14]} 36. Kc3 {[%emt 0:00:15]} c4 {[%emt 0:00:51]} 37. Kd2 {[%emt 0:00:16]} Ra3 {[%emt 0:00:18]} 38. e5 {[%emt 0:00:04]} fxe5 {[%emt 0:00:02]} 39. fxe5 {[%emt 0:00:01]} Nf7 {[%emt 0:00:13]} 40. Rb7+ {[%emt 0:00:14]} Ke6 {[%emt 0:00:01]} 41. g4 {[%emt 0:00:23]} Nxe5 {[%emt 0:01:09] White must now prevent ...Nf3+.} 42. Rxh7 {[%emt 0:00:07]} c3+ {[%emt 0:00:36]} 43. Ke3 {[%emt 0:00:11]} Nxg4+ {[%emt 0:00:13]} 44. Kd4 {[%emt 0:00:04]} Ne5 {[%emt 0:00:12]} 45. h5 {[%emt 0:00:16]} Nf3+ {[%emt 0:00:45]} 46. Kc4 {[%emt 0:00:16]} ({White should play} 46. Ke3 $11) 46... gxh5 {[%emt 0:01:01]} (46... Ne1 $1 $15 47. hxg6 (47. Bxg6 c2 $11) 47... Nxc2) 47. Rxh5 {[%emt 0:00:06] The position is equal.} Ne1 {[%emt 0:00:09]} 48. Rh2 {[%emt 0:00:15]} Kd6 {[%emt 0:00:10]} 49. Kb4 {[%emt 0:00:02]} Nxc2+ {[%emt 0:00:16]} 50. Rxc2 {[%emt 0:00:01]} Ra8 {[%emt 0:00:01]} 51. Rxc3 {[%emt 0:00:02]} Rb8+ {[%emt 0:00:02]} 52. Kc4 {[%emt 0:00:01]} Rc8+ 53. Kd4 {[%emt 0:00:09] Weighted Error Value: White=0.07 (flawless) /Black=0.06 (flawless)} 1/2-1/2

[Event "Chinese League Div-A Rapid 2022"]
[Site "Fuling,Chongqing"]
[Date "2022.09.08"]
[Round "3.1"]
[White "Ni, Hua"]
[Black "Wei, Yi"]
[Result "1/2-1/2"]
[ECO "D41"]
[WhiteElo "2668"]
[BlackElo "2727"]
[Annotator "TA"]
[PlyCount "66"]
[EventDate "2022.09.07"]
[EventType "team-tourn"]
[EventCountry "CHN"]
[SourceTitle "playchess.com"]
[Source "ChessBase"]
[SourceQuality "1"]
[TimeControl "1500+10"]

{[%evp 11,66,30,28,25,24,-8,39,25,39,32,28,16,30,0,43,23,49,0,0,0,0,0,0,0,0,0,-4,-6,0,-10,-11,-10,-2,-2,-4,-7,0,0,0,-5,0,0,0,0,0,0,0,0,0,0,0,0,0,0,0,0,0]} 1. Nf3 {[%emt 0:00:04]} d5 {[%emt 0:00:02]} 2. d4 {[%emt 0:00:01]} Nf6 {[%emt 0:00:02]} 3. c4 {[%emt 0:00:01]} e6 {[%emt 0:00:02]} 4. Nc3 {[%emt 0:00:01]} c5 {[%emt 0:00:02]} 5. cxd5 {[%emt 0:00:04]} cxd4 {[%emt 0:00:02]} 6. Qxd4 {[%emt 0:00:45]} exd5 {[%emt 0:00:02]} 7. e4 {[%emt 0:00:14] D41: Queen's Gambit Declined: Semi-Tarrasch with 5 cxd5.} dxe4 $1 {[%emt 0:00:03][%mdl 4] is currently scoring better than 7...Nc6.} 8. Qxd8+ {[%emt 0:00:04]} Kxd8 {[%emt 0:00:01]} 9. Ng5 {[%emt 0:00:01][%csl LRe4,LRf7] White is slightly better.} Be6 {[%emt 0:00:03]} 10. Nxe6+ {[%emt 0:02:26]} fxe6 {[%emt 0:00:02]} 11. Bc4 {[%emt 0:00:05]} Ke7 {[%emt 0:03:08]} 12. Bg5 {[%emt 0:00:47]} Nc6 {[%emt 0:00:12]} 13. Nxe4 {[%emt 0:00:18]} Kf7 {[%emt 0:00:02]} 14. Nxf6 {[%emt 0:00:22]} (14. Bxf6 $14 {might be stronger.} gxf6 15. O-O-O) 14... Bb4+ $11 {[%emt 0:00:24] [#] The position is equal.} 15. Ke2 $146 {[%emt 0:00:43][%cal Be1e2,Be2d3,Bd3d4,Bd4e4][%mdl 32]} ({Predecessor:} 15. Bd2 Bxd2+ 16. Kxd2 Kxf6 17. Rac1 Rhd8+ 18. Ke3 Rd6 19. Rhd1 Rad8 20. Rxd6 Rxd6 21. Bd3 {½-½ (31) Baum,J (2410)-Bilych,O (2365) Thessaloniki 2022}) 15... Nd4+ {[%emt 0:00:02]} 16. Kd3 {[%emt 0:00:41]} gxf6 {[%emt 0:00:02]} 17. Kxd4 {[%emt 0:00:09]} Rad8+ {[%emt 0:00:17]} 18. Ke4 {[%emt 0:00:04]} fxg5 {[%emt 0:00:02]} 19. Rhd1 {[%emt 0:00:04]} Bc5 {[%emt 0:00:33]} 20. f3 {[%emt 0:00:09]} Ke7 {[%emt 0:00:03]} 21. Rac1 {[%emt 0:00:17]} Rxd1 {[%emt 0:00:03]} 22. Rxd1 {[%emt 0:00:01][%mdl 4096] Endgame KRB-KRB} Rf8 {[%emt 0:00:38] [#] White must now prevent ...Rf4+.} 23. g3 {[%emt 0:00:10] Against Rf4+} Bd6 {[%emt 0:00:08]} 24. Re1 {[%emt 0:00:22]} Rf5 {[%emt 0:00:14] Hoping for ...Re5+.} 25. Re2 {[%emt 0:00:12]} Re5+ {[%emt 0:00:02]} 26. Kd3 {[%emt 0:00:01]} Rxe2 {[%emt 0:00:05]} 27. Kxe2 {[%emt 0:00:02] KB-KB} h5 {[%emt 0:00:06]} 28. Bd3 {[%emt 0:00:05]} h4 {[%emt 0:00:01]} 29. gxh4 {[%emt 0:00:00]} gxh4 {[%emt 0:00:01]} 30. h3 {[%emt 0:00:01]} Bc7 {[%emt 0:00:02]} 31. Bc2 {[%emt 0:00:01]} Bd6 {[%emt 0:00:01]} 32. Bd3 {[%emt 0:00:00]} Bc7 {[%emt 0:00:01]} 33. Bc2 Bd6 {[%emt 0:00:10] Weighted Error Value: White=0.04 (flawless) /Black=0.04 (flawless)} 1/2-1/2